Cogmind - Beta 17 @@@ ROGUE MODE // 2026.08.21 @ 16:18:38 Player: Plexion Result: Self-destructed Performance ------------- Evolutions (1) 500 Regions Visited (6) 1200 Robots Destroyed (67) 335 Value Destroyed (1616) 1616 Prototype IDs (6) 120 Alien Tech Used (0) 0 Bonus (8648) 8648 TOTAL SCORE: 12419 Bonus ------- Follower Combat Kills 758 Prayed to X0-1V1 5000 Major X0-1V1 Interference 2950 Friendly Fire -60 Cogmind --------- Core Integrity 171/425 Matter 262/300 Energy 80/100 System Corruption 5% Temperature Cool (0) Movement Treading (160) Location -9/Scraptown Parts ------- > --- POWER (1) -------- (None) > --- PROPULSION (4) --- Light Treads Light Treads Light Treads Armored Wheel > --- UTILITY (3) ------ X0-1V1's Piety Tracker > --- WEAPON (1) ------- (None) > --- INVENTORY (5) ---- Improved Medium Armor Plating Gatling Laser Advanced Beam Cannon CPS Tube (2) Peak State ------------ > --- POWER ------------ Mini Fusion Reactor > --- PROPULSION ------- Light Treads Light Treads Compact Wheel Armored Wheel > --- UTILITY ---------- Huge Storage Unit Centrium Light Armor Plating X0-1V1's Piety Tracker > --- WEAPON ----------- Gatling Laser > --- INVENTORY -------- Heavy Ion Engine Light Treads Light Treads Light Treads Light Treads Light Treads Light Treads Light Treads Light Treads Light Treads Light Treads Cooling System Light Armor Plating Improved Medium Armor Plating Hacking Suite Advanced Beam Cannon Advanced Beam Cannon Advanced Beam Cannon Advanced Beam Cannon Advanced Beam Cannon Advanced Beam Cannon Advanced Beam Cannon Grenade Launcher Grenade Launcher Heavy Pick [Rating: 45] Favorites ----------- Power Heavy Ion Engine Engine Heavy Ion Engine Reactor Mini Fusion Reactor Propulsion Light Treads Treads Light Treads Wheel Armored Wheel Utility X0-1V1's Piety Tracker Device X0-1V1's Piety Tracker Storage Huge Storage Unit Protection Centrium Light Armor Plating Weapon Advanced Beam Cannon Energy Gun Medium Laser Energy Cannon Advanced Beam Cannon Ballistic Gun Assault Rifle Launcher Grenade Launcher Build | -11 -10 -10 -9 -9 -9 -9 ------- Run | Yrd Mat Min Mat Sto Rec Scr Slots Evolved 2 | . . . 2 . . . Power . | . . . . . . . Propulsion 1 | . . . 1 . . . Utility 1 | . . . 1 . . . Weapon . | . . . . . . . Parts Attached 46 | 7 3 4 4 20 3 5 Power 5 | 1 . 1 . 2 1 . Engine 4 | 1 . 1 . 2 . . Core . | . . . . . . . Reactor 1 | . . . . . 1 . Propulsion 19 | 2 . 2 2 11 . 2 Treads 17 | 2 . 2 2 9 . 2 Leg . | . . . . . . . Wheel 2 | . . . . 2 . . Hover . | . . . . . . . Flight . | . . . . . . . Utility 10 | 2 3 . 1 2 2 . Device 2 | 1 1 . . . . . Storage 4 | 1 2 . . 1 . . Processor . | . . . . . . . Hackware . | . . . . . . . Protection 4 | . . . 1 1 2 . Artifact . | . . . . . . . Weapon 12 | 2 . 1 1 5 . 3 Energy Gun 2 | 1 . . . . . 1 Energy Cannon 4 | . . . . 3 . 1 Ballistic Gun 4 | 1 . 1 . 2 . . Ballistic Cannon . | . . . . . . . Launcher 2 | . . . 1 . . 1 Special Weapon . | . . . . . . . Impact Weapon . | . . . . . . . Slashing Weapon . | . . . . . . . Piercing Weapon . | . . . . . . . Special Melee Weapon . | . . . . . . . Unidentified Prototypes 5 | . 1 . . 2 2 . Parts Lost 8 | . . . . . 1 7 Power 1 | . . . . . . 1 Propulsion 4 | . . . . . . 4 Utility 2 | . . . . . 1 1 Weapon 1 | . . . . . . 1 Highest Loss Streak 6 | . . . . . 1 6 To Critical Strikes . | . . . . . . . Average Backups 17 | 2 7 10 12 18 24 24 Power 1 | . 1 1 1 1 1 1 Propulsion 7 | 1 5 6 6 7 10 9 Utility 2 | . . 1 1 2 2 4 Weapon 5 | . 1 1 4 7 9 9 Tool/Special . | . . . . . . . Unused Backups 22 | . . 1 1 6 . 14 Power 2 | . . . . 1 . 1 Propulsion 3 | . . 1 1 . . 1 Utility 5 | . . . . 1 . 4 Weapon 10 | . . . . 4 . 6 Tool/Special 2 | . . . . . . 2 Average Slot Usage (%) 97 | . 100 99 98 99 96 91 Engine 8 | . 14 14 11 11 7 . Reactor 3 | . . . . . 3 10 Treads 24 | . 28 27 27 24 20 22 Wheel 9 | . . . . 8 22 21 Device 11 | . 14 14 11 11 11 11 Storage 11 | . 14 14 11 11 11 10 Protection 7 | . . . 10 11 11 10 Energy Gun 5 | . 14 14 7 . . 2 Energy Cannon 6 | . . . . 15 9 1 Ballistic Gun 7 | . 14 14 18 6 . . Peak Build Rating 45 | 7 20 21 25 32 43 45 Average Rating 28 | 5 8 20 24 29 33 41 On Entrance 20 | . 7 20 21 25 32 40 Avg Prop Armor Cover (%) 16 | . . . . 9 16 19 Naked Turns . | . . . . . . . Heaviest Build 100 | 15 30 33 38 100 100 96 Greatest Support 80 | 40 40 40 60 60 28 80 Greatest Overweight (x) 8 | . . 1 . 8 3 7 Average Overweight (x) 1 | . . . . 1 3 3 Largest Inventory Capacity 25 | 8 15 15 15 25 25 25 Average Capacity 19 | 6 12 15 15 20 25 24 Most Carried 25 | 4 10 15 15 25 25 25 Average Carried 17 | 2 7 13 12 18 24 24 Final Capacity 25 | 8 15 15 15 25 25 5 Final Carried 25 | 4 10 10 14 25 25 4 Class Distribution -------------------- 56% | Mutant 35% | Commander-Mutant 4% | Scavenger-Mutant Dominant Class ---------------- Mutant | -10/Materials Mutant | -10/Mines Mutant | -9/Materials Mutant | -9/Storage Commander-Mutant | -9/Recycling Commander-Mutant | -9/Scraptown Resources | -11 -10 -10 -9 -9 -9 -9 ----------- Run | Yrd Mat Min Mat Sto Rec Scr Matter Collected 1768 | 270 99 122 170 970 69 68 Remotely . | . . . . . . . Salvage Created 2452 | 116 355 40 265 1474 . 202 Parts 167 | 6 34 7 20 92 . 8 Haulers Intercepted 7 | . 1 . 1 5 . . Recyclers Shooed 4 | . 1 . . 3 . . Parts Field Recycled . | . . . . . . . Retrieved Matter . | . . . . . . . Parts Self-Destructed . | . . . . . . . Prevented . | . . . . . . . Parts Restored . | . . . . . . . Kills | -11 -10 -10 -9 -9 -9 -9 ------- Run | Yrd Mat Min Mat Sto Rec Scr Combat Hostiles Destroyed 42 | . 10 3 5 20 . 4 Guns 21 | . 10 3 2 5 . 1 Cannons 16 | . . . 1 15 . . AOE 5 | . . . 2 . . 3 Classes Destroyed 13 | 2 6 . 2 1 . 2 Worker 4 | . 1 . . 3 . . Builder 2 | . . . . 2 . . Tunneler 1 | 1 . . . . . . Hauler 7 | . 1 . 1 5 . . Recycler 3 | 1 . 1 . 1 . . Operator 3 | . 1 . 1 1 . . Watcher 4 | . 2 . . 2 . . Swarmer 9 | . 6 3 . . . . Grunt 16 | . 4 . 3 9 . . Duelist 2 | . . . 2 . . . Sentry 12 | . . . 1 11 . . Explorer 1 | . . . . . . 1 Scrapper 3 | . . . . . . 3 Best Kill Streak 6 | 1 6 3 3 5 . 3 Combat Bots Only 4 | . 3 3 3 4 . 3 Max Kills in Single Turn 2 | 1 1 2 1 2 . 2 Gunslinging 1 | . . 1 . . . . Exploded 2 | . . . 1 . . 2 Melee . | . . . . . . . Uniques/NPCs Destroyed 1 | . . . . . 1 . 01-MTF (-9/Recycling) Combat | -11 -10 -10 -9 -9 -9 -9 -------- Run | Yrd Mat Min Mat Sto Rec Scr Hostile Shots Fired 270 | . 27 8 30 57 26 122 Missed 88 | . 10 2 6 16 8 46 Hits 182 | . 17 6 24 41 18 76 Melee 3 | . . . 1 . . 2 Projectile 179 | . 17 6 23 41 18 74 Critical Strikes 6 | . . . 1 1 1 3 Damage Taken 2800 | . 176 46 324 516 367 1371 Core 301 | . 10 6 31 87 52 115 Absorbed by Shields . | . . . . . . . Ignored by Resistances 52 | . . . 7 . . 45 Core Remaining (%) 98 | 100 . 97 . . . . Volleys Fired 161 | 4 31 3 19 76 15 13 Largest 3 | 2 2 2 3 2 1 1 Hottest 136 | 70 70 70 90 136 68 80 Shots Fired 300 | 8 62 8 39 155 15 13 Gun 185 | 8 62 8 37 62 . 8 Cannon 108 | . . . . 93 15 . Launcher 7 | . . . 2 . . 5 Special . | . . . . . . . Kinetic 125 | 4 31 3 25 62 . . Thermal 168 | 4 31 5 12 93 15 8 Explosive 7 | . . . 2 . . 5 Electromagnetic . | . . . . . . . Robot Hit Streak 9 | 4 9 3 5 6 5 7 Robot Miss Streak 5 | 1 3 2 4 5 2 2 Penetration Max . | . . . . . . . Secondary Targets 1 | . . 1 . . . . Max Gunslinging Chain 1 | . . 1 . . . . Shots Hit Robots 177 | 5 37 5 23 88 10 9 Core Hits 112 | 4 23 3 17 40 1 24 Critical Kills 2 | . 1 . . 1 . . Critical Parts Destroyed 1 | . . . . 1 . . Critical Strikes 7 | . 4 . 1 2 . . Burn 4 | . 3 . 1 . . . Meltdown 1 | . . . . 1 . . Destroy 2 | . 1 . . 1 . . Melee Attacks . | . . . . . . . Impact . | . . . . . . . Slashing . | . . . . . . . Piercing . | . . . . . . . Sneak Attacks . | . . . . . . . Combat Hostiles . | . . . . . . . Follow-up Attacks . | . . . . . . . Damage Inflicted 3507 | 72 492 73 644 1504 90 632 Guns 1468 | 64 478 60 269 441 . 156 Cannons 1220 | . . . 69 1061 90 . Explosions 772 | . . . 296 . . 476 Melee . | . . . . . . . Ramming 47 | 8 14 13 10 2 . . Kinetic 935 | 12 225 34 223 441 . . Thermal 1871 | 52 253 26 233 1061 90 156 Explosive 654 | . . . 178 . . 476 Electromagnetic . | . . . . . . . Impact . | . . . . . . . Slashing . | . . . . . . . Piercing . | . . . . . . . Highest Corruption 17 | . . . 11 13 17 5 Average Corruption 12 | . . . 11 12 14 3 Corruption Purged . | . . . . . . . Corruption Blocked . | . . . . . . . Effects 83 | . . . 6 67 9 1 Message Errors 20 | . . . 1 16 3 . Matter Fused 13 | . . . 1 10 1 1 Heat Flow Errors 13 | . . . 2 9 2 . Energy Discharges 11 | . . . . 11 . . Parts Rejected 2 | . . . . 1 1 . Data Loss (minor) 8 | . . . 1 7 . . Data Loss (major) 5 | . . . . 5 . . Misfires 6 | . . . . 5 1 . Alerts 2 | . . . 1 1 . . Weapon Failures 3 | . . . . 2 1 . Overload Shots . | . . . . . . . Overflow Damage 22 | . . . . 22 . . Projectiles 22 | . . . . 22 . . Explosions . | . . . . . . . Melee . | . . . . . . . Knockbacks . | . . . . . . . Impact . | . . . . . . . Kinetic . | . . . . . . . Secondary . | . . . . . . . Self-Inflicted Damage 23 | . . . 23 . . . Shots 2 | . . . 2 . . . Rammed 12 | 1 6 1 3 1 . . Targets Rammed 12 | 1 6 1 3 1 . . Kicked . | . . . . . . . Crushed . | . . . . . . . Highest Temperature 368 | 27 45 27 332 368 234 102 Average Temperature 76 | 12 13 13 152 74 51 40 Received Heat Transfer 660 | . 39 . 141 234 9 237 Effects 3 | . . . 3 . . . Interference 3 | . . . 3 . . . Siege Activations . | . . . . . . . Martial Activations . | . . . . . . . Shielding Activations . | . . . . . . . Robots Disrupted . | . . . . . . . Combat Hostiles . | . . . . . . . Robots Corrupted . | . . . . . . . Combat Hostiles . | . . . . . . . Parts Fried . | . . . . . . . Impact Corruptions . | . . . . . . . Robots Melted 1 | . . . . 1 . . Combat Hostiles . | . . . . . . . Parts Melted 7 | . 1 . 1 3 . 2 Heat Transferred 4410 | 148 962 74 557 1924 370 375 Parts Sabotaged . | . . . . . . . Parts Stolen . | . . . . . . . Parts Stripped . | . . . . . . . Power Chain Reactions . | . . . . . . . Alert | -11 -10 -10 -9 -9 -9 -9 ------- Run | Yrd Mat Min Mat Sto Rec Scr Maximum Alert Level 1 | . . . 1 1 . . Low Security (%) 83 | 100 100 100 71 68 100 . Level 1 16 | . . . 28 31 . . Level 2 . | . . . . . . . Level 3 . | . . . . . . . Level 4 . | . . . . . . . Level 5 . | . . . . . . . High Security . | . . . . . . . Max Security . | . . . . . . . Peak Influence 378 | 5 132 118 303 378 136 . Initial 136 | . . 48 . 115 136 . Average 114 | 1 45 18 112 193 81 . Influence Increases 1646 | 10 311 75 402 848 . . Destroy 0b10 Robot/C 1000 | . 200 60 220 520 . . Destroy 0b10 Robot/NC 135 | 10 25 5 25 70 . . Destroy Leader 294 | . 56 10 44 184 . . Allied During Kill 69 | . . . 31 38 . . Disable Machine 45 | . . . 30 15 . . Destroy Structure 28 | . . . 22 6 . . Lose Combat Pursuer 75 | . 30 . 30 15 . . Influence Decreases 1646 | 10 187 199 129 769 326 26 Entered New Map 476 | . . 76 . 158 216 26 Time Decay 1066 | 10 187 123 95 571 80 . Lost Part 10 | . . . . . 10 . Lost Ally 94 | . . . 34 40 20 . Squads Dispatched 11 | . 1 1 5 4 . . Investigation 4 | . . 1 1 2 . . Extermination . | . . . . . . . Reinforcement 6 | . 1 . 3 2 . . Assault 1 | . . . 1 . . . Garrison . | . . . . . . . Intercept . | . . . . . . . Searches Triggered . | . . . . . . . Construction Impeded . | . . . . . . . Haulers Reinforced . | . . . . . . . Active Scanning Responses . | . . . . . . . Cargo Convoy Interrupts . | . . . . . . . Stealth | -11 -10 -10 -9 -9 -9 -9 --------- Run | Yrd Mat Min Mat Sto Rec Scr Distress Signals 5 | . 3 . 2 . . . Communications Jammed . | . . . . . . . Distress Signals . | . . . . . . . Times Spotted 105 | . 19 2 14 28 1 41 Peak Tracking Total 22 | . 5 2 4 3 1 22 Tactical Retreats 3 | . 1 . 1 1 . . Traps | -11 -10 -10 -9 -9 -9 -9 ------- Run | Yrd Mat Min Mat Sto Rec Scr Traps Triggered 2 | . . . . 2 . . Indirectly . | . . . . . . . Trap Hack Attempts . | . . . . . . . Triggered . | . . . . . . . Disarmed 6 | . . . . 6 . . Reprogrammed . | . . . . . . . Reused . | . . . . . . . Traps Extracted . | . . . . . . . Installed . | . . . . . . . Triggered . | . . . . . . . Most Traps Carried 5 | . . 5 . . . . Machines | -11 -10 -10 -9 -9 -9 -9 ---------- Run | Yrd Mat Min Mat Sto Rec Scr Machines Disabled 8 | . . . 2 1 . 5 Max in Single Turn 2 | . . . 2 1 . 2 Garrison Access 1 | . . . . 1 . . Machines Repaired . | . . . . . . . Machines Dismantled . | . . . . . . . Machines Sabotaged . | . . . . . . . Overloaded Fab Kills . | . . . . . . . Hacking | -11 -10 -10 -9 -9 -9 -9 --------- Run | Yrd Mat Min Mat Sto Rec Scr Machines Accessed 7 | . . . 1 5 . 1 Terminals 5 | . . . 1 4 . . Fabricators . | . . . . . . . Repair Stations . | . . . . . . . Recycling Units . | . . . . . . . Scanalyzers . | . . . . . . . Garrison Access 1 | . . . . 1 . . Total Hacks 9 | . . . 1 7 . 1 Successful 5 | . . . . 4 . 1 Failed 4 | . . . 1 3 . . Catastrophic 1 | . . . 1 . . . Database Lockouts . | . . . . . . . Manual 4 | . 1 . 1 2 . . Terminals 7 | . . . 1 6 . . Fabricators . | . . . . . . . Repair Stations . | . . . . . . . Recycling Units . | . . . . . . . Scanalyzers . | . . . . . . . Garrison Access 1 | . . . . 1 . . Terminal Hacks 4 | . . . . 3 . 1 Record 1 | . . . . . . 1 Open Door 2 | . . . . 2 . . Disarm Traps 1 | . . . . 1 . . Fabricator Hacks . | . . . . . . . Repair Station Hacks . | . . . . . . . Recycling Unit Hacks . | . . . . . . . Scanalyzer . | . . . . . . . Garrison Access Hacks 1 | . . . . 1 . . Seal Access 1 | . . . . 1 . . Unauthorized Hacks . | . . . . . . . Terminals . | . . . . . . . Fabricators . | . . . . . . . Repair Stations . | . . . . . . . Recycling Units . | . . . . . . . Scanalyzers . | . . . . . . . Garrison Access . | . . . . . . . Data Cores Recovered . | . . . . . . . Used . | . . . . . . . Hacking Detections 2 | . . . 1 1 . . Full Trace Events . | . . . . . . . Feedback Events . | . . . . . . . Feedback Blocked . | . . . . . . . Robot Schematics Acquired . | . . . . . . . Robots Built . | . . . . . . . Authchips . | . . . . . . . Time . | . . . . . . . Total Robot Build Rating . | . . . . . . . Part Schematics Acquired . | . . . . . . . Parts Built . | . . . . . . . Authchips . | . . . . . . . Time . | . . . . . . . Total Part Build Rating . | . . . . . . . Part Studies Acquired . | . . . . . . . Parts Repaired . | . . . . . . . Time . | . . . . . . . Parts Recycled . | . . . . . . . Recycled Matter . | . . . . . . . Retrieved Matter . | . . . . . . . Retrieved Components . | . . . . . . . Parts Scanalyzed . | . . . . . . . Part Schematics Acquired . | . . . . . . . Parts Damaged . | . . . . . . . Bothacking | -11 -10 -10 -9 -9 -9 -9 ------------ Run | Yrd Mat Min Mat Sto Rec Scr Used RIF Installer . | . . . . . . . Robots Hacked . | . . . . . . . Non-combat . | . . . . . . . Combat . | . . . . . . . Robot Hacks Applied . | . . . . . . . Relay Couplers Released . | . . . . . . . Fabnet Peak Effective % . | . . . . . . . Robots Rewired . | . . . . . . . Allies Hacked . | . . . . . . . Hacks Repelled . | . . . . . . . Allies | -11 -10 -10 -9 -9 -9 -9 -------- Run | Yrd Mat Min Mat Sto Rec Scr Total Allies 20 | . . 1 5 10 . 4 Largest Group 10 | . . 1 5 10 10 9 Highest-Rated Group 574 | . . 31 90 88 88 574 Highest-Rated Ally 446 | . . 31 18 18 16 446 Total Orders 11 | . . . . . . 11 STAY 11 | . . . . . . 11 Ally Attacks 136 | . . . 22 17 25 72 Total Damage 4622 | . . . 539 248 117 3718 Kills 37 | . . . 9 6 1 21 Allies Corrupted . | . . . . . . . Allies Melted . | . . . . . . . X0-1V1 Amusement Gains 148 | . 4 . 40 . 60 44 Good Acts 30 | . . 9 13 6 1 1 Bad Acts 19 | . . 6 10 2 1 . Intel | -11 -10 -10 -9 -9 -9 -9 ------- Run | Yrd Mat Min Mat Sto Rec Scr Active Infowar (turns) 540 | 11 529 . . . . . Seismic 540 | 11 529 . . . . . Robot Analysis Total . | . . . . . . . Derelict Logs Recovered 2 | . . 2 . . . . Drone Launches . | . . . . . . . Drone Recoveries . | . . . . . . . Exploration | -11 -10 -10 -9 -9 -9 -9 ------------- Run | Yrd Mat Min Mat Sto Rec Scr Turns Passed 5049 | 111 580 807 254 1726 178 1393 Spaces Moved 2777 | 54 281 462 95 851 91 943 Core 2 | 2 . . . . . . Treads 1368 | 52 281 462 95 472 . 6 Legs . | . . . . . . . Wheels 1407 | . . . . 379 91 937 Hover . | . . . . . . . Flight . | . . . . . . . Fastest Speed 50 | 50 160 160 160 140 140 140 Average Speed 153 | 155 160 161 160 159 140 141 Slowest Speed 480 | 160 160 240 160 480 140 240 Overloaded Moves . | . . . . . . . Propulsion Burnouts . | . . . . . . . Robots Hopped . | . . . . . . . Potential Cave-ins . | . . . . . . . Cave-ins Triggered . | . . . . . . . Exploration Rate (%) 46 | 4 50 85 20 88 23 56 Regions Visited 6 Branch Regions 4 Pre-discovered Areas 1 | . . 1 . . . . Known Exits Taken 1 | . . 1 . . . . Unknown Exits Taken 5 | 1 1 . 1 1 1 . Scrap Searched 4 | . . . . . . 4 Spaces Dug . | . . . . . . . Terrain Destroyed 44 | . . . 21 . . 23 Melee . | . . . . . . . Projectile . | . . . . . . . AOE 44 | . . . 21 . . 23 Terrain Rammed . | . . . . . . . Walls Destroyed . | . . . . . . . Machines Disabled . | . . . . . . . Actions | -11 -10 -10 -9 -9 -9 -9 --------- Run | Yrd Mat Min Mat Sto Rec Scr Total 3282 | 69 346 522 160 1070 128 987 Wait 190 | . 18 37 33 79 12 11 Move 2771 | 53 280 461 94 850 90 943 Hop . | . . . . . . . Pick Up 43 | 4 5 7 5 16 1 5 Fast Attach 20 | 7 1 . 1 8 2 1 Attach 12 | . . 1 2 1 3 5 Detach 7 | . 1 . . 3 2 1 Swap 25 | . 2 3 2 15 1 2 Drop 41 | . 2 9 1 21 2 6 Fire 161 | 4 31 3 19 76 15 13 Melee . | . . . . . . . Ram . | . . . . . . . Kick . | . . . . . . . Crush 12 | 1 6 1 3 1 . . Escape Stasis . | . . . . . . . Rewire . | . . . . . . . Trap . | . . . . . . . Miscellaneous . | . . . . . . . Route ------- -11/Scrapyard -10/Materials (discovered 4 exits: *Mat x2 / [*Min] / [*Sub]) -10/Mines (discovered 3 exits: *Mat x2 / [*Exi]) -9/Materials (discovered 3 exits: Mat / Min / *Sto) -9/Storage (discovered 2 exits: *Mat / [*Rec]) -9/Recycling -9/Scraptown (discovered 1 exit: [*Fac]) History --------- Turn | Location | Event 66 | -11/Scrapyard | Discovered new exit (range 14) 112 | -11/Scrapyard | Entered Materials 318 | -10/Materials | Build established: Mutant 321 | -10/Materials | Discovered new exit (range 14) 325 | -10/Materials | Discovered new exit (range 14) 568 | -10/Materials | Discovered new exit (range 13) 617 | -10/Materials | Discovered new exit (range 8) 641 | -10/Materials | Prayed at D.C.S.S. Altar Unit 692 | -10/Materials | Entered Mines 711 | -10/Mines | Learned Materials stockpile data 909 | -10/Mines | Found a hidden stash of uninstalled traps 993 | -10/Mines | X0-1V1 activates XOMVISION 1058 | -10/Mines | Received a Mining Laser from a helpful Derelict 1113 | -10/Mines | Learned location of Storage (-9) 1218 | -10/Mines | Joined a pair of Derelicts in attacking an 0b10 outpost 1360 | -10/Mines | Deemed a non-threat by the Exiles lab entrance 1360 | -10/Mines | Discovered new exit (range 5) 1403 | -10/Mines | Discovered new exit (range 9) 1429 | -10/Mines | Core integrity permanently improved by X0-1V1 (+300) 1446 | -10/Mines | Identified exit to Materials 1446 | -10/Mines | X0-1V1 revealed exit location to -9/Materials 1456 | -10/Mines | X0-1V1 mutated your Propulsion slot to Weapon slot 1485 | -10/Mines | X0-1V1 activates XOMVISION 1499 | -10/Mines | Entered Materials 1499 | -9/Materials | Evolved 2 slots: Propulsion x1, Utility x1 1502 | -9/Materials | EX resistance permanently improved by X0-1V1 (+20%; -200 max core) 1513 | -9/Materials | Identified exit to Mines 1513 | -9/Materials | X0-1V1 revealed exit location to -9/Mines 1521 | -9/Materials | X0-1V1 sent you to a vault 1524 | -9/Materials | X0-1V1 released a cloud of subatomizers 1553 | -9/Materials | X0-1V1 foreshadows a heat wave 1593 | -9/Materials | X0-1V1 announced a LAN party 1609 | -9/Materials | X0-1V1 mutated your Weapon slot to Propulsion slot 1616 | -9/Materials | System corruption reached 10% 1617 | -9/Materials | Discovered new exit (range 16) 1617 | -9/Materials | X0-1V1 sent you into danger 1635 | -9/Materials | Identified exit to Materials 1635 | -9/Materials | X0-1V1 revealed exit location to -8/Materials 1691 | -9/Materials | Ambient heat levels rising (+10) 1753 | -9/Materials | Entered Storage 1753 | -9/Storage | Accompanied by 2 allies 1814 | -9/Storage | Heat dissipation permanently improved by X0-1V1 (+15; -75 max core) 2207 | -9/Storage | Discovered exit to Materials (range 9) 2893 | -9/Storage | X0-1V1 sent you into danger 3159 | -9/Storage | Assisted by bots powering up and referring to "LRC-V3" 3269 | -9/Storage | Met 01-MTF 3452 | -9/Storage | Discovered new exit (range 4) 3469 | -9/Storage | Build established: Commander-Mutant 3479 | -9/Storage | Entered Recycling 3479 | -9/Recycling | Accompanied by 11 allies (01-MTF) 3498 | -9/Recycling | X0-1V1 mutated your Weapon slot to Propulsion slot 3561 | -9/Recycling | Scanned before Scraplab entrance 3594 | -9/Recycling | Allies destroyed 01-MTF 3630 | -9/Recycling | Entered Scraplab 3641 | -9/Recycling | Discovered new exit (range 3) 3657 | -9/Recycling | Entered Scraptown 3657 | -9/Scraptown | Accompanied by 9 allies 3657 | -9/Scraptown | System corruption cleaned by C-Scrubber 3866 | -9/Scraptown | Visited CR-KLE's Repair Center 4080 | -9/Scraptown | Discovered new exit (range 11) 4174 | -9/Scraptown | Visited The Evicted 4187 | -9/Scraptown | Visited Red Mages 4233 | -9/Scraptown | Visited SPCMW 4254 | -9/Scraptown | Visited Shadow of the Wyrm 4271 | -9/Scraptown | Visited Cyclists 4961 | -9/Scraptown | X0-1V1 brought Wyrm Statue to life 4961 | -9/Scraptown | Attacked by Scraptown defenders 5020 | -9/Scraptown | X0-1V1 turns hostiles against one another 5032 | -9/Scraptown | Core integrity fell below 50% 5050 | -9/Scraptown | Self-destructed Last Messages --------------- 05032_ Critical hit (Burn: +37). 05032_ FC-U3K(E) overheating. 05033_ The unstable cave ceiling collapses. 05033_ FC-U3K(E) overheating. 05035_ Network quickbooting FC-U3K(E), ETC: 6. 05038_ Y6-Z6I(j) heat spikes uncontrollably. 05038_ FC-U3K(E) heat damages Imp. Deuterium Engine. 05038_ The unstable cave ceiling collapses. 05039_ Acquired 53 matter. 05040_ The unstable cave ceiling collapses. 05041_ FC-U3K(E) reactivates. 05041_ Machine disabled. 05043_ Mni. Fusion Reactor destroyed. 05043_ Machine disabled. 05044_ Y6-Z6I(j) destroyed. 05047_ The unstable cave ceiling collapses. 05047_ Lgt. Treads destroyed. 05048_ Dropped Huge Storage Unit. 05049_ UZ-T2B(j): "If it isn't public enemy #1: the new Wanderer!" 05049_ Chaos Wyrm destroyed. Map ----- +----------------------------------------------------+ | | | | | | | | | ?????????????????????????????????????????????????? | | ####??????????????????#######????????????????????? | | """"#?????????????????? #????????????????????? | | "#??????????????????< ?################???# | | "" "#???#########??????? #?#"""""""""#""""???"" | | "" "#???#"""""""#???????# #?#" "#" ?? " | | "" "#???#"" ""#???????# z #?#" """ " | | "#???#"" ""#???????#j!j#?#" "#" "" " | | """###?#""" ""#???????#j==#?#" """ "#" " " | | #?#"" ""#??????##!%]###" "#" " | | ###""" """######## !*] ##"""""" ""#"" """""" | | [%! | | = | | | | ###### ########### ##########"" """"#### | | #????# #?????????## ##????????#" /%"#??? | | #????" "????###???# #########?#" ""#??? | | #??? " " ???? ??# """"""""#?#" """#??? | | """ ""#??" "??### ### " ""#?#" """#??? | | """ "#? " " ?#"" """]= "#?#"""""""#??? | | """ "#""""" """""#" ""]|=" ""#?#########??? | | "" "##?### ###?##" */@=! """""""#????????????? | | " "#????" "????#" !]!]]##"""####????????????? | | """ ""#????" "????#" " ]=] #####????????##?????? | | ### ###???? ????#" x #??########?? ????? | | ??# ??????" "????#"""" = #?## #??? ###?? | | ??###??????? ?????##### #### / ##???" #?? | | #??????????? ????????# p ## =% #???# #?? | | ############ ######### [*!=! ## %=% ##### ### | | ![*!=% # # ! #" | | !%E%%*! =% #" | | ########################!![%=! #" | | #??????????????????????#[![= [ # # | | #######???????????????### g# # # ########### | | """"""#???????????????# p [* | | "#????########???# [ % | | !*! "#?????"""""""???# | | ]=! "#?????"" " ""??# =% | | ! "#????#?" ??# ! | | ! "#?????" " ?# #" | | = "#????#"" " " " " # # # # | | = "#????#"" "" " # # " """ # # | | ] "#????#" # =!# "" "" # #### | | """ ""#????#" " [% " " ###??# | | ### ###????#"""" """"# *!# " " #????# | | ### ###??????"""""""""# # " " #????# | +----------------------------------------------------+ Best States ------------- Heat Dissipation 43 Energy Generation 21 Energy Capacity 1380 Matter Stores 900 Matter Capacity 900 Sight Range 19 Terrain Scan Density 10 Armor Coverage 150 Resistance: EX 20 Evasion (%) 40 Recoil Reduction 4 Item Schematics ----------------- None Robot Schematics ------------------ None Fabricated ------------ Nothing Repaired ---------- Nothing Studied --------- None Alien Tech Used ----------------- None Achievements -------------- None Challenges ------------ None Game ------ Seed DrainedUtilityDatajack Manual? 0 Play Time 00:29:43 Cumulative 989.5 hours Start 2026.08.21 @ 15:47:15 End 2026.08.21 @ 16:18:38 Sessions 4 Manual Loads 0 Difficulty Rogue Special Mode None Game No. 887 Rogue 800 Adventurer 87 Explorer 0 Win Type - Total 67 Types 12/9/33/2/1/1/5/1/1/2 Lore% 97 Gallery% 90 Achievement% 75 Wizard Run 0 Options --------- Layout 0 ASCII 0 Keyboard 1 Movement Numpad Keybinds 0 Fullscreen 2 Font 18/SmallcapsGlow Map View 76x50 Zoom Use 0% Tactical HUD 1 Map Filters NONE Filters NONE Steam 1 RUN: 98543e78-3f6b-47d5-ab42-31ec96383435